[Event "*** Titled Tuesday Blitz"]
[Site "Chess.com"]
[Date "2020.05.19"]
[Round "5"]
[White "AnthonyWirig"]
[Black "Alopekos"]
[Result "1-0"]
[WhiteElo "2670"]
[BlackElo "2468"]
[TimeControl "180+1"]
[EndTime "12:57:15 PDT"]
[Termination "AnthonyWirig won by resignation"]

1. d4 {[%clk 0:03:00.9]} 1... Nf6 {[%clk 0:02:58.5]} 2. Bg5 {[%clk 0:03:00.2]}
2... e6 {[%clk 0:02:56]} 3. e4 {[%clk 0:02:58.8]} 3... h6 {[%clk 0:02:53]} 4.
Bxf6 {[%clk 0:02:57.4]} 4... Qxf6 {[%clk 0:02:52.6]} 5. c3 {[%clk 0:02:58.1]}
5... c5 {[%clk 0:02:51.7]} 6. Nf3 {[%clk 0:02:54.6]} 6... Nc6 {[%clk 0:02:49.6]}
7. Na3 {[%clk 0:02:34.1]} 7... cxd4 {[%clk 0:02:24.3]} 8. Nb5 {[%clk 0:02:33.6]}
8... Qd8 {[%clk 0:02:24.6]} 9. Nbxd4 {[%clk 0:02:30.7]} 9... Bc5 {[%clk
0:02:01]} 10. Be2 {[%clk 0:02:17.6]} 10... O-O {[%clk 0:01:34.5]} 11. O-O {[%clk
0:02:17]} 11... d5 {[%clk 0:01:35.1]} 12. exd5 {[%clk 0:02:15.4]} 12... Qxd5
{[%clk 0:01:23.7]} 13. Nxc6 {[%clk 0:02:08.2]} 13... Qxc6 {[%clk 0:01:20.2]} 14.
Bd3 {[%clk 0:01:53.9]} 14... Qc7 {[%clk 0:01:08.7]} 15. Qe2 {[%clk 0:01:53.1]}
15... Bd7 {[%clk 0:00:56.7]} 16. Qe4 {[%clk 0:01:43.3]} 16... g6 {[%clk
0:00:50.7]} 17. Ne5 {[%clk 0:01:35.6]} 17... Bc6 {[%clk 0:00:38.9]} 18. Nxc6
{[%clk 0:01:24.4]} 18... Qxc6 {[%clk 0:00:39.8]} 19. Qxc6 {[%clk 0:01:23.4]}
19... bxc6 {[%clk 0:00:40.7]} 20. Rfd1 {[%clk 0:01:20.1]} 20... Rab8 {[%clk
0:00:35.5]} 21. Rab1 {[%clk 0:01:19.2]} 21... Rfd8 {[%clk 0:00:32.8]} 22. Kf1
{[%clk 0:01:19.4]} 22... Be7 {[%clk 0:00:26.9]} 23. Ke2 {[%clk 0:01:17.6]} 23...
c5 {[%clk 0:00:23.2]} 24. Bc4 {[%clk 0:01:11]} 24... Bf6 {[%clk 0:00:14.2]} 25.
Rxd8+ {[%clk 0:01:03.5]} 25... Rxd8 {[%clk 0:00:15.1]} 26. g3 {[%clk 0:01:03.4]}
26... Kf8 {[%clk 0:00:14.2]} 27. h4 {[%clk 0:01:03.2]} 27... Ke7 {[%clk
0:00:12.2]} 28. a4 {[%clk 0:01:01.9]} 28... Rb8 {[%clk 0:00:06.8]} 29. Kd3
{[%clk 0:01:01.1]} 29... Rd8+ {[%clk 0:00:06.2]} 30. Kc2 {[%clk 0:01:01.4]}
30... a5 {[%clk 0:00:06.6]} 31. Re1 {[%clk 0:01:00.4]} 31... g5 {[%clk
0:00:04.3]} 32. h5 {[%clk 0:00:56]} 32... Kd6 {[%clk 0:00:04.1]} 33. Bb5 {[%clk
0:00:52.8]} 33... Ke7 {[%clk 0:00:03.9]} 34. Re2 {[%clk 0:00:53]} 34... Rd5
{[%clk 0:00:03.9]} 35. Kb3 {[%clk 0:00:52.9]} 35... g4 {[%clk 0:00:04]} 36. Re4
{[%clk 0:00:52.1]} 36... Rxh5 {[%clk 0:00:04.1]} 37. Rxg4 {[%clk 0:00:52.4]}
37... Rf5 {[%clk 0:00:04]} 38. Rc4 {[%clk 0:00:45.7]} 38... Rxf2 {[%clk
0:00:03]} 39. Rxc5 {[%clk 0:00:46.1]} 39... Bg5 {[%clk 0:00:02.7]} 40. Bc6
{[%clk 0:00:42.9]} 40... Bc1 {[%clk 0:00:02.7]} 41. Rxa5 {[%clk 0:00:42.8]}
41... Rxb2+ {[%clk 0:00:02.8]} 42. Kc4 {[%clk 0:00:43.7]} 42... Ra2 {[%clk
0:00:01.9]} 43. Ra7+ {[%clk 0:00:43.3]} 43... Kf6 {[%clk 0:00:01.8]} 44. Be8
{[%clk 0:00:43.9]} 44... Be3 {[%clk 0:00:02]} 45. Rxf7+ {[%clk 0:00:43.6]} 45...
Ke5 {[%clk 0:00:02.8]} 46. Rf3 {[%clk 0:00:43.1]} 46... Bd2 {[%clk 0:00:02]} 47.
Rf2 {[%clk 0:00:39.6]} 47... Bc1 {[%clk 0:00:01.5]} 48. Rxa2 {[%clk 0:00:37.9]}
1-0

[Event "*** Titled Tuesday Blitz"]
[Site "Chess.com"]
[Date "2020.05.19"]
[Round "5"]
[White "MasterKroket"]
[Black "jtayar88"]
[Result "1/2-1/2"]
[WhiteElo "2403"]
[BlackElo "2549"]
[TimeControl "180+1"]
[EndTime "12:57:15 PDT"]
[Termination "Game drawn by repetition"]

1. d4 {[%clk 0:03:00.8]} 1... Nf6 {[%clk 0:02:59.4]} 2. c4 {[%clk 0:02:59.8]}
2... Nc6 {[%clk 0:02:59.2]} 3. Nf3 {[%clk 0:02:57.5]} 3... e6 {[%clk 0:02:59.1]}
4. a3 {[%clk 0:02:56.7]} 4... g6 {[%clk 0:02:58.1]} 5. Nc3 {[%clk 0:02:55.5]}
5... Bg7 {[%clk 0:02:56.7]} 6. e4 {[%clk 0:02:54.1]} 6... d6 {[%clk 0:02:56.6]}
7. Be2 {[%clk 0:02:49.2]} 7... O-O {[%clk 0:02:56.3]} 8. h4 {[%clk 0:02:45.4]}
8... Re8 {[%clk 0:02:28.7]} 9. Be3 {[%clk 0:02:38.3]} 9... e5 {[%clk 0:02:18.5]}
10. d5 {[%clk 0:02:37]} 10... Nd4 {[%clk 0:02:18]} 11. b4 {[%clk 0:02:00.1]}
11... a5 {[%clk 0:01:54.9]} 12. b5 {[%clk 0:01:58.4]} 12... b6 {[%clk
0:01:42.4]} 13. Nd2 {[%clk 0:01:44.7]} 13... Nxe2 {[%clk 0:00:49.2]} 14. Nxe2
{[%clk 0:01:42.2]} 14... Ng4 {[%clk 0:00:49.6]} 15. Nf1 {[%clk 0:01:32.5]} 15...
Nxe3 {[%clk 0:00:44.8]} 16. Nxe3 {[%clk 0:01:33.4]} 16... Bh6 {[%clk 0:00:43.8]}
17. Nf1 {[%clk 0:01:23.2]} 17... f5 {[%clk 0:00:41]} 18. h5 {[%clk 0:01:20.4]}
18... Kg7 {[%clk 0:00:29.5]} 19. Qb3 {[%clk 0:01:07.2]} 19... fxe4 {[%clk
0:00:25.9]} 20. Neg3 {[%clk 0:01:04.5]} 20... Bf5 {[%clk 0:00:12.9]} 21. Ne3
{[%clk 0:01:02.3]} 21... Bxe3 {[%clk 0:00:11]} 22. Qxe3 {[%clk 0:01:03.2]} 22...
Qf6 {[%clk 0:00:08.7]} 23. O-O-O {[%clk 0:00:59.4]} 23... Rh8 {[%clk 0:00:04.4]}
24. Rh2 {[%clk 0:00:58.5]} 24... Kf7 {[%clk 0:00:04.3]} 25. Rdh1 {[%clk
0:00:58.5]} 25... Rag8 {[%clk 0:00:05.2]} 26. hxg6+ {[%clk 0:00:57.3]} 26...
hxg6 {[%clk 0:00:06.1]} 27. Rh7+ {[%clk 0:00:45.1]} 27... Rxh7 {[%clk
0:00:05.5]} 28. Rxh7+ {[%clk 0:00:46]} 28... Rg7 {[%clk 0:00:05.7]} 29. Qh6
{[%clk 0:00:36.4]} 29... Rxh7 {[%clk 0:00:05.6]} 30. Qxh7+ {[%clk 0:00:37]}
30... Qg7 {[%clk 0:00:06.5]} 31. Qxg7+ {[%clk 0:00:34.8]} 31... Kxg7 {[%clk
0:00:07.4]} 32. Kd2 {[%clk 0:00:35.1]} 32... Kf6 {[%clk 0:00:07.5]} 33. Ke3
{[%clk 0:00:35.7]} 33... Kg5 {[%clk 0:00:07.2]} 34. Ne2 {[%clk 0:00:19.6]} 34...
Kg4 {[%clk 0:00:07.4]} 35. Nc3 {[%clk 0:00:15.5]} 35... Kg5 {[%clk 0:00:07.6]}
36. Nd1 {[%clk 0:00:11.9]} 36... Kg4 {[%clk 0:00:07.6]} 37. Nc3 {[%clk
0:00:12.2]} 37... Kg5 {[%clk 0:00:07.8]} 38. Na4 {[%clk 0:00:08.8]} 38... Kf6
{[%clk 0:00:07.5]} 39. Nc3 {[%clk 0:00:06.6]} 39... Kg5 {[%clk 0:00:07.7]}
1/2-1/2

[Event "*** Titled Tuesday Blitz"]
[Site "Chess.com"]
[Date "2020.05.19"]
[Round "5"]
[White "FMJoseHerrera"]
[Black "Elbek_Jumanov"]
[Result "1-0"]
[WhiteElo "2653"]
[BlackElo "2425"]
[TimeControl "180+1"]
[EndTime "12:57:16 PDT"]
[Termination "FMJoseHerrera won by resignation"]

1. Nf3 {[%clk 0:03:00.9]} 1... c5 {[%clk 0:02:57.9]} 2. g3 {[%clk 0:03:00.4]}
2... Nc6 {[%clk 0:02:56.2]} 3. Bg2 {[%clk 0:02:59.9]} 3... g6 {[%clk 0:02:56.7]}
4. d3 {[%clk 0:02:59.5]} 4... Bg7 {[%clk 0:02:57.2]} 5. Nc3 {[%clk 0:02:59.7]}
5... Nf6 {[%clk 0:02:56]} 6. h4 {[%clk 0:02:59.8]} 6... h6 {[%clk 0:02:54]} 7.
e4 {[%clk 0:02:59.1]} 7... d6 {[%clk 0:02:52.8]} 8. Bf4 {[%clk 0:02:58.2]} 8...
Rb8 {[%clk 0:02:52.6]} 9. Qd2 {[%clk 0:02:54.9]} 9... b5 {[%clk 0:02:50.4]} 10.
e5 {[%clk 0:02:44.2]} 10... Ng4 {[%clk 0:02:42.7]} 11. exd6 {[%clk 0:02:43.5]}
11... exd6 {[%clk 0:02:42.1]} 12. h5 {[%clk 0:02:23.3]} 12... g5 {[%clk
0:02:39.9]} 13. Nxg5 {[%clk 0:02:22.3]} 13... Nd4 {[%clk 0:02:11.2]} 14. Nge4
{[%clk 0:02:18.7]} 14... Ne5 {[%clk 0:02:03.8]} 15. O-O-O {[%clk 0:01:46.2]}
15... f5 {[%clk 0:02:02.6]} 16. Nxc5 {[%clk 0:01:24]} 16... O-O {[%clk 0:01:25]}
17. Nb3 {[%clk 0:01:11.4]} 17... Ndf3 {[%clk 0:01:21.6]} 18. Qe3 {[%clk
0:01:04.7]} 18... Bb7 {[%clk 0:01:19.2]} 19. Bxh6 {[%clk 0:00:52.6]} 19... b4
{[%clk 0:01:16.7]} 20. Ne2 {[%clk 0:00:47.7]} 20... a5 {[%clk 0:01:02.8]} 21.
Bxg7 {[%clk 0:00:45.1]} 21... Kxg7 {[%clk 0:01:02.3]} 22. Ned4 {[%clk
0:00:42.2]} 22... Qf6 {[%clk 0:01:00.3]} 23. Nxf3 {[%clk 0:00:35.9]} 23... Bxf3
{[%clk 0:00:52.1]} 24. Bxf3 {[%clk 0:00:36.8]} 24... a4 {[%clk 0:00:52.3]} 25.
Nd4 {[%clk 0:00:35.7]} 25... a3 {[%clk 0:00:51.4]} 26. Bd5 {[%clk 0:00:28.4]}
26... axb2+ {[%clk 0:00:40.1]} 27. Kb1 {[%clk 0:00:28.2]} 27... Rfc8 {[%clk
0:00:39.5]} 28. Qf4 {[%clk 0:00:22]} 28... Rc5 {[%clk 0:00:33.9]} 29. Bb3 {[%clk
0:00:19.5]} 29... Ra5 {[%clk 0:00:27]} 30. Qxf5 {[%clk 0:00:18.6]} 30... Qxf5
{[%clk 0:00:18.7]} 31. Nxf5+ {[%clk 0:00:19.5]} 31... Kf6 {[%clk 0:00:19.2]} 32.
Nxd6 {[%clk 0:00:19.7]} 32... Rba8 {[%clk 0:00:16.6]} 33. Kxb2 {[%clk
0:00:19.4]} 33... Nc6 {[%clk 0:00:16.9]} 34. Ne4+ {[%clk 0:00:19.5]} 34... Ke5
{[%clk 0:00:15.5]} 35. h6 {[%clk 0:00:19.7]} 35... Nd4 {[%clk 0:00:15.9]} 36. h7
{[%clk 0:00:20.3]} 36... Nxb3 {[%clk 0:00:15.2]} 37. h8=Q+ {[%clk 0:00:20.4]}
37... Rxh8 {[%clk 0:00:12.2]} 38. Rxh8 {[%clk 0:00:21.3]} 38... Nd4 {[%clk
0:00:11.3]} 39. Rh5+ {[%clk 0:00:20.4]} 1-0

[Event "*** Titled Tuesday Blitz"]
[Site "Chess.com"]
[Date "2020.05.19"]
[Round "5"]
[White "AlanZhang"]
[Black "GMJustin"]
[Result "1-0"]
[WhiteElo "2214"]
[BlackElo "2333"]
[TimeControl "180+1"]
[EndTime "12:57:20 PDT"]
[Termination "AlanZhang won on time"]

1. e4 {[%clk 0:03:00.9]} 1... e5 {[%clk 0:02:51.3]} 2. Nf3 {[%clk 0:02:57]} 2...
Nc6 {[%clk 0:02:51.2]} 3. Bb5 {[%clk 0:02:52.2]} 3... a6 {[%clk 0:02:48.8]} 4.
Ba4 {[%clk 0:02:16.7]} 4... d6 {[%clk 0:02:48.4]} 5. d4 {[%clk 0:02:05.1]} 5...
b5 {[%clk 0:02:27.7]} 6. Bb3 {[%clk 0:01:58.6]} 6... Nxd4 {[%clk 0:02:26.8]} 7.
Nxd4 {[%clk 0:01:52.7]} 7... exd4 {[%clk 0:02:26]} 8. Bd5 {[%clk 0:01:53.3]}
8... Rb8 {[%clk 0:02:23.4]} 9. Qxd4 {[%clk 0:01:50.4]} 9... Nf6 {[%clk
0:02:13.7]} 10. O-O {[%clk 0:01:26.1]} 10... Be7 {[%clk 0:01:55.2]} 11. Nc3
{[%clk 0:01:18.6]} 11... O-O {[%clk 0:01:48.2]} 12. Bf4 {[%clk 0:00:57.3]} 12...
c5 {[%clk 0:01:21.5]} 13. Qd3 {[%clk 0:00:53.4]} 13... b4 {[%clk 0:01:18.5]} 14.
Ne2 {[%clk 0:00:51.4]} 14... Nxd5 {[%clk 0:01:16]} 15. exd5 {[%clk 0:00:47.5]}
15... Bd7 {[%clk 0:01:12.9]} 16. c4 {[%clk 0:00:46]} 16... bxc3 {[%clk
0:01:09.7]} 17. bxc3 {[%clk 0:00:45.4]} 17... Rb2 {[%clk 0:00:59.8]} 18. Ng3
{[%clk 0:00:25.4]} 18... Qb6 {[%clk 0:00:27.9]} 19. c4 {[%clk 0:00:16.8]} 19...
Re8 {[%clk 0:00:20.5]} 20. Rfe1 {[%clk 0:00:14.9]} 20... Bf8 {[%clk 0:00:18.4]}
21. h3 {[%clk 0:00:14.7]} 21... Rxe1+ {[%clk 0:00:17.6]} 22. Rxe1 {[%clk
0:00:15.6]} 22... Rxa2 {[%clk 0:00:17.5]} 23. Nh5 {[%clk 0:00:10.3]} 23... a5
{[%clk 0:00:16.6]} 24. Qg3 {[%clk 0:00:06.3]} 24... Kh8 {[%clk 0:00:10.5]} 25.
Be3 {[%clk 0:00:03.3]} 25... Rb2 {[%clk 0:00:09.4]} 26. Qf3 {[%clk 0:00:03.5]}
26... Rb1 {[%clk 0:00:08]} 27. Rxb1 {[%clk 0:00:02.6]} 27... Qxb1+ {[%clk
0:00:07.9]} 28. Kh2 {[%clk 0:00:03.3]} 28... Qf5 {[%clk 0:00:07.9]} 29. Qe2
{[%clk 0:00:02.4]} 29... Qe5+ {[%clk 0:00:06.5]} 30. f4 {[%clk 0:00:01.2]} 30...
Qe4 {[%clk 0:00:05]} 31. Ng3 {[%clk 0:00:01.7]} 31... Qe7 {[%clk 0:00:04.3]} 32.
Qd2 {[%clk 0:00:01.7]} 32... a4 {[%clk 0:00:04.1]} 33. Qc3 {[%clk 0:00:01.9]}
33... Qf6 {[%clk 0:00:03.4]} 34. Qxf6 {[%clk 0:00:01.2]} 34... gxf6 {[%clk
0:00:03.4]} 35. Bc1 {[%clk 0:00:01.8]} 35... f5 {[%clk 0:00:02.7]} 36. Bb2+
{[%clk 0:00:02.1]} 36... Bg7 {[%clk 0:00:02.5]} 37. Ba3 {[%clk 0:00:02.2]} 37...
Bc3 {[%clk 0:00:01.8]} 38. Nh5 {[%clk 0:00:02.3]} 38... Bd2 {[%clk 0:00:01.6]}
39. Bb2+ {[%clk 0:00:02.4]} 1-0

[Event "*** Titled Tuesday Blitz"]
[Site "Chess.com"]
[Date "2020.05.19"]
[Round "5"]
[White "ENajer77"]
[Black "djamir"]
[Result "0-1"]
[WhiteElo "2547"]
[BlackElo "2735"]
[TimeControl "180+1"]
[EndTime "12:57:21 PDT"]
[Termination "djamir won on time"]

1. d4 {[%clk 0:03:00.9]} 1... Nf6 {[%clk 0:02:59.8]} 2. c4 {[%clk 0:02:58.6]}
2... e6 {[%clk 0:03:00]} 3. g3 {[%clk 0:02:55.1]} 3... Bb4+ {[%clk 0:02:59.6]}
4. Bd2 {[%clk 0:02:54.1]} 4... c5 {[%clk 0:02:59.6]} 5. Bxb4 {[%clk 0:02:52.8]}
5... cxb4 {[%clk 0:03:00.5]} 6. Bg2 {[%clk 0:02:53.1]} 6... a5 {[%clk 0:03:00]}
7. a3 {[%clk 0:02:48.7]} 7... Na6 {[%clk 0:02:59.7]} 8. Nf3 {[%clk 0:02:42.7]}
8... O-O {[%clk 0:02:59.1]} 9. O-O {[%clk 0:02:42.6]} 9... d6 {[%clk 0:02:59.4]}
10. Qd3 {[%clk 0:02:42]} 10... Qe7 {[%clk 0:02:44.9]} 11. Nbd2 {[%clk 0:02:34]}
11... Rd8 {[%clk 0:02:43.8]} 12. e4 {[%clk 0:02:33.9]} 12... e5 {[%clk
0:02:43.4]} 13. Rfe1 {[%clk 0:02:32.3]} 13... b6 {[%clk 0:02:43.1]} 14. Nf1
{[%clk 0:01:23.6]} 14... Bb7 {[%clk 0:02:36.7]} 15. Nh4 {[%clk 0:01:23.5]} 15...
g6 {[%clk 0:02:36.6]} 16. Ne3 {[%clk 0:01:23.9]} 16... exd4 {[%clk 0:02:31.4]}
17. Qxd4 {[%clk 0:01:23.6]} 17... Nc5 {[%clk 0:02:31.1]} 18. Rad1 {[%clk
0:01:05.8]} 18... Qe5 {[%clk 0:02:07.6]} 19. axb4 {[%clk 0:01:03.9]} 19... axb4
{[%clk 0:02:04.2]} 20. Qd2 {[%clk 0:00:45.9]} 20... Ncxe4 {[%clk 0:01:59.6]} 21.
Qxb4 {[%clk 0:00:44.7]} 21... Qc5 {[%clk 0:01:59.2]} 22. Qb3 {[%clk 0:00:37]}
22... Rab8 {[%clk 0:01:47.6]} 23. Nf3 {[%clk 0:00:36.5]} 23... Nxf2 {[%clk
0:01:25.8]} 24. Kxf2 {[%clk 0:00:34.4]} 24... Ng4+ {[%clk 0:01:26]} 25. Kf1
{[%clk 0:00:24.3]} 25... Bxf3 {[%clk 0:01:01.4]} 26. Bxf3 {[%clk 0:00:23.7]}
26... Nxh2+ {[%clk 0:01:01.8]} 27. Kg2 {[%clk 0:00:24.2]} 27... Nxf3 {[%clk
0:01:02.2]} 28. Kxf3 {[%clk 0:00:25.1]} 28... b5 {[%clk 0:01:02.8]} 29. cxb5
{[%clk 0:00:19]} 29... Rxb5 {[%clk 0:01:02.8]} 30. Qc3 {[%clk 0:00:18.7]} 30...
Qh5+ {[%clk 0:00:58.1]} 31. Kg2 {[%clk 0:00:17.5]} 31... Rc5 {[%clk 0:00:58.3]}
32. Qd4 {[%clk 0:00:16.4]} 32... Qe5 {[%clk 0:00:49.9]} 33. Qxe5 {[%clk
0:00:12.8]} 33... Rxe5 {[%clk 0:00:50.8]} 34. Nd5 {[%clk 0:00:13.1]} 34... Rb8
{[%clk 0:00:43.1]} 35. b4 {[%clk 0:00:12.9]} 35... f5 {[%clk 0:00:39.8]} 36.
Rxe5 {[%clk 0:00:09.2]} 36... dxe5 {[%clk 0:00:40.7]} 37. Rb1 {[%clk 0:00:08.9]}
37... Rb5 {[%clk 0:00:37.8]} 38. Nc3 {[%clk 0:00:08.2]} 38... Rb7 {[%clk
0:00:37.9]} 39. b5 {[%clk 0:00:07.9]} 39... Kf7 {[%clk 0:00:38.5]} 40. b6 {[%clk
0:00:07.9]} 40... Ke6 {[%clk 0:00:39]} 41. Na4 {[%clk 0:00:07.7]} 41... Kd5
{[%clk 0:00:38.8]} 42. Kf2 {[%clk 0:00:04.9]} 42... Kc4 {[%clk 0:00:31]} 43. Ke3
{[%clk 0:00:03.4]} 43... g5 {[%clk 0:00:30.3]} 44. Rc1+ {[%clk 0:00:01.1]} 44...
Kb4 {[%clk 0:00:30.4]} 0-1

[Event "*** Titled Tuesday Blitz"]
[Site "Chess.com"]
[Date "2020.05.19"]
[Round "5"]
[White "UCantHandleDenker"]
[Black "2346PL"]
[Result "0-1"]
[WhiteElo "2559"]
[BlackElo "2426"]
[TimeControl "180+1"]
[EndTime "12:57:21 PDT"]
[Termination "2346PL won on time"]

1. Nf3 {[%clk 0:02:59.6]} 1... f5 {[%clk 0:02:58.6]} 2. c4 {[%clk 0:02:58.7]}
2... Nf6 {[%clk 0:02:58.9]} 3. Nc3 {[%clk 0:02:58]} 3... g6 {[%clk 0:02:59.5]}
4. g3 {[%clk 0:02:57.7]} 4... Bg7 {[%clk 0:02:59.9]} 5. Bg2 {[%clk 0:02:58.1]}
5... O-O {[%clk 0:03:00.4]} 6. O-O {[%clk 0:02:58.9]} 6... d6 {[%clk 0:03:01]}
7. d3 {[%clk 0:02:58.8]} 7... Nc6 {[%clk 0:03:00.6]} 8. Rb1 {[%clk 0:02:58.4]}
8... Nh5 {[%clk 0:03:00.5]} 9. Bd2 {[%clk 0:02:56.5]} 9... f4 {[%clk 0:03:00.4]}
10. b4 {[%clk 0:02:56]} 10... e5 {[%clk 0:02:59.6]} 11. b5 {[%clk 0:02:53.8]}
11... Ne7 {[%clk 0:02:57.5]} 12. a4 {[%clk 0:02:50.7]} 12... h6 {[%clk
0:02:50.1]} 13. Ne1 {[%clk 0:02:41.6]} 13... g5 {[%clk 0:02:49.5]} 14. a5 {[%clk
0:02:30.7]} 14... Rb8 {[%clk 0:02:40.7]} 15. Nc2 {[%clk 0:02:22.1]} 15... Be6
{[%clk 0:02:30.5]} 16. Nb4 {[%clk 0:02:17.5]} 16... g4 {[%clk 0:02:14.1]} 17.
Nbd5 {[%clk 0:02:08]} 17... Nf5 {[%clk 0:02:14.3]} 18. Ne4 {[%clk 0:01:32.7]}
18... Nd4 {[%clk 0:02:10.6]} 19. Bc3 {[%clk 0:01:17.1]} 19... f3 {[%clk
0:01:58.9]} 20. exf3 {[%clk 0:00:35.1]} 20... gxf3 {[%clk 0:01:58.5]} 21. Bxd4
{[%clk 0:00:33.3]} 21... fxg2 {[%clk 0:01:57.7]} 22. Re1 {[%clk 0:00:32.7]}
22... Bxd5 {[%clk 0:01:08.8]} 23. cxd5 {[%clk 0:00:24.6]} 23... Nf6 {[%clk
0:01:07.3]} 24. Nxf6+ {[%clk 0:00:19.9]} 24... Qxf6 {[%clk 0:01:07.4]} 25. Bxa7
{[%clk 0:00:20.8]} 25... b6 {[%clk 0:01:02.9]} 26. Qe2 {[%clk 0:00:16]} 26...
Rb7 {[%clk 0:00:54.7]} 27. axb6 {[%clk 0:00:15.5]} 27... cxb6 {[%clk 0:00:51.6]}
28. Ra1 {[%clk 0:00:15.6]} 28... Qf7 {[%clk 0:00:48.9]} 29. Bxb6 {[%clk
0:00:13.6]} 29... Rxb6 {[%clk 0:00:49]} 30. Ra6 {[%clk 0:00:12.6]} 30... Rxb5
{[%clk 0:00:38.1]} 31. Rxd6 {[%clk 0:00:11.9]} 31... Rxd5 {[%clk 0:00:38.7]} 32.
Rc6 {[%clk 0:00:11]} 32... Qd7 {[%clk 0:00:36.6]} 33. Rg6 {[%clk 0:00:09.2]}
33... Qf5 {[%clk 0:00:33.5]} 34. Rg4 {[%clk 0:00:06.5]} 34... Rxd3 {[%clk
0:00:30.4]} 35. Kxg2 {[%clk 0:00:03.2]} 35... Rf3 {[%clk 0:00:23.8]} 36. Rf1
{[%clk 0:00:03.6]} 36... Qxg4 {[%clk 0:00:23.7]} 37. Qc4+ {[%clk 0:00:02.2]}
37... Qxc4 {[%clk 0:00:23.1]} 0-1

[Event "*** Titled Tuesday Blitz"]
[Site "Chess.com"]
[Date "2020.05.19"]
[Round "5"]
[White "Karacsonyi_Gellert"]
[Black "GoValya"]
[Result "1-0"]
[WhiteElo "2462"]
[BlackElo "2200"]
[TimeControl "180+1"]
[EndTime "12:57:22 PDT"]
[Termination "Karacsonyi_Gellert won by resignation"]

1. e4 {[%clk 0:03:00.9]} 1... e6 {[%clk 0:02:58.9]} 2. d4 {[%clk 0:03:01]} 2...
d5 {[%clk 0:02:59.1]} 3. e5 {[%clk 0:03:01.9]} 3... c5 {[%clk 0:02:58.6]} 4. c3
{[%clk 0:03:02.5]} 4... Nc6 {[%clk 0:02:58.1]} 5. Nf3 {[%clk 0:03:03]} 5... Be7
{[%clk 0:02:57.1]} 6. Be2 {[%clk 0:03:02.5]} 6... cxd4 {[%clk 0:02:57]} 7. cxd4
{[%clk 0:03:02.2]} 7... f6 {[%clk 0:02:57.1]} 8. exf6 {[%clk 0:03:01.6]} 8...
Nxf6 {[%clk 0:02:56.1]} 9. O-O {[%clk 0:03:02.1]} 9... O-O {[%clk 0:02:56]} 10.
Nc3 {[%clk 0:03:02.5]} 10... Qc7 {[%clk 0:02:52.6]} 11. Bg5 {[%clk 0:03:02]}
11... Ne4 {[%clk 0:02:48.5]} 12. Bxe7 {[%clk 0:02:58.2]} 12... Qxe7 {[%clk
0:02:48.5]} 13. Qd3 {[%clk 0:02:57.1]} 13... Nb4 {[%clk 0:02:44.8]} 14. Qd1
{[%clk 0:02:49.8]} 14... Bd7 {[%clk 0:02:39.2]} 15. Ne5 {[%clk 0:02:49.4]} 15...
Nc6 {[%clk 0:02:28]} 16. Nxe4 {[%clk 0:02:45.3]} 16... dxe4 {[%clk 0:02:27.4]}
17. Bc4 {[%clk 0:02:33.7]} 17... Rad8 {[%clk 0:02:20.6]} 18. Qg4 {[%clk
0:01:56.1]} 18... Nxd4 {[%clk 0:02:04.3]} 19. Qxe4 {[%clk 0:01:47.4]} 19... Bc6
{[%clk 0:01:46.3]} 20. Nxc6 {[%clk 0:01:44.3]} 20... bxc6 {[%clk 0:01:46.6]} 21.
Rad1 {[%clk 0:01:40.6]} 21... c5 {[%clk 0:01:37.7]} 22. b4 {[%clk 0:01:38.1]}
22... Kh8 {[%clk 0:01:22]} 23. bxc5 {[%clk 0:01:09.7]} 23... Qxc5 {[%clk
0:01:21.3]} 24. Rc1 {[%clk 0:00:50.1]} 24... Qg5 {[%clk 0:01:14.6]} 25. f4
{[%clk 0:00:40.4]} 25... Qg4 {[%clk 0:01:05.3]} 26. Rc3 {[%clk 0:00:40.2]} 26...
Qf5 {[%clk 0:00:39.7]} 27. Qxf5 {[%clk 0:00:39.6]} 27... exf5 {[%clk 0:00:39.4]}
28. Kf2 {[%clk 0:00:35.3]} 28... Rfe8 {[%clk 0:00:38.5]} 29. Re1 {[%clk
0:00:30.7]} 29... h6 {[%clk 0:00:36.9]} 30. Rxe8+ {[%clk 0:00:27.8]} 30... Rxe8
{[%clk 0:00:37.2]} 31. Rd3 {[%clk 0:00:28.7]} 31... Nc6 {[%clk 0:00:32.6]} 32.
Bb5 {[%clk 0:00:27.4]} 32... Re6 {[%clk 0:00:28.4]} 33. Ra3 {[%clk 0:00:24.1]}
33... Nd4 {[%clk 0:00:26.6]} 34. Bc4 {[%clk 0:00:23.4]} 34... Rc6 {[%clk
0:00:26.1]} 35. Bd5 {[%clk 0:00:22.6]} 35... Rc7 {[%clk 0:00:25.4]} 36. Bf3
{[%clk 0:00:21.4]} 36... Kg8 {[%clk 0:00:24.2]} 37. Bd5+ {[%clk 0:00:21.3]}
37... Kf8 {[%clk 0:00:24.1]} 38. g3 {[%clk 0:00:21.6]} 38... Ke7 {[%clk
0:00:23.5]} 39. Ra6 {[%clk 0:00:22]} 39... Nb5 {[%clk 0:00:20.4]} 40. Bb3 {[%clk
0:00:21.3]} 40... Nd6 {[%clk 0:00:20.1]} 41. Ke3 {[%clk 0:00:20.8]} 41... Ne4
{[%clk 0:00:20.1]} 42. Re6+ {[%clk 0:00:20.7]} 42... Kd7 {[%clk 0:00:19.9]} 43.
Rg6 {[%clk 0:00:21.1]} 43... Rc3+ {[%clk 0:00:19.9]} 44. Kd4 {[%clk 0:00:20.6]}
44... Rc6 {[%clk 0:00:19.2]} 45. Rxg7+ {[%clk 0:00:21.1]} 45... Kd6 {[%clk
0:00:18.6]} 46. Rg6+ {[%clk 0:00:21.5]} 46... Kd7 {[%clk 0:00:17.8]} 47. Ba4
{[%clk 0:00:21.5]} 1-0